Workbook

Sheet 1
A1: Школа | B1: МБОУ Лицей №188 города Казани | E1: Отд./корп | I1: День | J1: 7.03.2023
A3: Прием пищи | B3: Раздел | C3: № рец. | D3: Блюдо | E3: Выход, г | F3: Цена | G3: Калорийность | H3: Белки | I3: Жиры | J3: Углеводы
A4: Завтрак | B4: ='[1]6-11.03, 20-25.03'!B13 -> гор.блюдо | C4: ='[1]6-11.03, 20-25.03'!C13 -> ТТК 2021 | D4: ='[1]6-11.03, 20-25.03'!D13 -> Жаркое из птицы | E4: ='[1]6-11.03, 20-25.03'!E13 -> 190 | G4: ='[1]6-11.03, 20-25.03'!G13 -> 265.00 | H4: ='[1]6-11.03, 20-25.03'!H13 -> 13.52 | I4: ='[1]6-11.03, 20-25.03'!I13 -> 13.68 | J4: ='[1]6-11.03, 20-25.03'!J13 -> 21.91
B5: ='[1]6-11.03, 20-25.03'!B14 -> гор.напиток | C5: ='[1]6-11.03, 20-25.03'!C14 -> ТТК 2021 г | D5: ='[1]6-11.03, 20-25.03'!D14 -> Чай без сахара | E5: ='[1]6-11.03, 20-25.03'!E14 -> 180 | G5: ='[1]6-11.03, 20-25.03'!G14 -> 0.00 | H5: ='[1]6-11.03, 20-25.03'!H14 -> 0.01 | I5: ='[1]6-11.03, 20-25.03'!I14 -> 0.01 | J5: ='[1]6-11.03, 20-25.03'!J14 -> 0.01
B6: ='[1]6-11.03, 20-25.03'!B15 -> хлеб | D6: ='[1]6-11.03, 20-25.03'!D15 -> Хлеб ржано-пшеничный | E6: ='[1]6-11.03, 20-25.03'!E15 -> 25 | G6: ='[1]6-11.03, 20-25.03'!G15 -> 55.00 | H6: ='[1]6-11.03, 20-25.03'!H15 -> 1.25 | I6: ='[1]6-11.03, 20-25.03'!I15 -> 0.25 | J6: ='[1]6-11.03, 20-25.03'!J15 -> 11.25
B7: ='[1]6-11.03, 20-25.03'!B16 -> фрукты | C7: ='[1]6-11.03, 20-25.03'!C16 -> № 338/2015г | D7: ='[1]6-11.03, 20-25.03'!D16 -> Плоды свежие (яблоки) | E7: ='[1]6-11.03, 20-25.03'!E16 -> 100 | G7: ='[1]6-11.03, 20-25.03'!G16 -> 47.00 | H7: ='[1]6-11.03, 20-25.03'!H16 -> 0.40 | I7: ='[1]6-11.03, 20-25.03'!I16 -> 0.40 | J7: ='[1]6-11.03, 20-25.03'!J16 -> 9.80
B8: ='[1]6-11.03, 20-25.03'!B17 -> закуска | C8: ='[1]6-11.03, 20-25.03'!C17 -> № 47/2015 г | D8: ='[1]6-11.03, 20-25.03'!D17 -> Салат из квашенной капусты | E8: ='[1]6-11.03, 20-25.03'!E17 -> 60 | G8: ='[1]6-11.03, 20-25.03'!G17 -> 51.00 | H8: ='[1]6-11.03, 20-25.03'!H17 -> 0.98 | I8: ='[1]6-11.03, 20-25.03'!I17 -> 3.05 | J8: ='[1]6-11.03, 20-25.03'!J17 -> 4.63
B9: ='[1]6-11.03, 20-25.03'!B18 -> печенье | C9: ='[1]6-11.03, 20-25.03'!C18 -> АКТ 2019 | D9: ='[1]6-11.03, 20-25.03'!D18 -> Печенье весовое | E9: ='[1]6-11.03, 20-25.03'!E18 -> 30 | G9: ='[1]6-11.03, 20-25.03'!G18 -> 117.00 | H9: ='[1]6-11.03, 20-25.03'!H18 -> 2.07 | I9: ='[1]6-11.03, 20-25.03'!I18 -> 2.14 | J9: ='[1]6-11.03, 20-25.03'!J18 -> 22.23
A12: ИТОГО | E12: ='[1]6-11.03, 20-25.03'!E20 -> 585 | F12: ='[1]6-11.03, 20-25.03'!F20 -> 62.10 | G12: ='[1]6-11.03, 20-25.03'!G20 -> 535 | H12: ='[1]6-11.03, 20-25.03'!H20 -> 18.23 | I12: ='[1]6-11.03, 20-25.03'!I20 -> 19.53 | J12: ='[1]6-11.03, 20-25.03'!J20 -> 69.83
